[Event "Early-Titled-Tuesday-Blitz-January-30-2024"]
[Site "Chess.com"]
[Date "2024.01.30"]
[Round "8"]
[White "Resignify"]
[Black "Better_Chess_Faster"]
[Result "1-0"]
[WhiteElo "2267"]
[BlackElo "2132"]
[TimeControl "180+1"]
[EndTime "9:30:18 PST"]
[Termination "Resignify won by checkmate"]

1. e4 {[%clk 0:03:00.9]} 1... Nf6 {[%clk 0:02:59.6]} 2. Nc3 {[%clk 0:03:00.5]}
2... e5 {[%clk 0:02:58.7]} 3. Nf3 {[%clk 0:03:00.1]} 3... Nc6 {[%clk 0:02:57.6]}
4. g3 {[%clk 0:02:56.4]} 4... Bc5 {[%clk 0:02:50]} 5. Bg2 {[%clk 0:02:56.6]}
5... O-O {[%clk 0:02:46.7]} 6. O-O {[%clk 0:02:56.4]} 6... d6 {[%clk 0:02:46.2]}
7. d3 {[%clk 0:02:56.3]} 7... a6 {[%clk 0:02:45.5]} 8. a3 {[%clk 0:02:52.5]}
8... Ng4 {[%clk 0:02:38.1]} 9. h3 {[%clk 0:02:51.4]} 9... Nf6 {[%clk 0:02:36.1]}
10. b4 {[%clk 0:02:43.2]} 10... Ba7 {[%clk 0:02:35]} 11. Be3 {[%clk 0:02:43.3]}
11... Bxe3 {[%clk 0:02:32.6]} 12. fxe3 {[%clk 0:02:43.5]} 12... Nh5 {[%clk
0:02:30.4]} 13. Kh2 {[%clk 0:02:42.8]} 13... f5 {[%clk 0:02:16.9]} 14. exf5
{[%clk 0:02:40.6]} 14... Bxf5 {[%clk 0:02:08.6]} 15. g4 {[%clk 0:02:37]} 15...
Bxg4 {[%clk 0:01:55.5]} 16. hxg4 {[%clk 0:02:36.7]} 16... Nf6 {[%clk 0:01:54.5]}
17. g5 {[%clk 0:02:22.9]} 17... Ng4+ {[%clk 0:01:49]} 18. Kg1 {[%clk 0:02:23]}
18... Nxe3 {[%clk 0:01:46.6]} 19. Qe2 {[%clk 0:02:21.4]} 19... Nxf1 {[%clk
0:01:41.8]} 20. Rxf1 {[%clk 0:02:22.3]} 20... Qd7 {[%clk 0:01:25.7]} 21. Nd5
{[%clk 0:02:20.5]} 21... Ne7 {[%clk 0:01:16.1]} 22. Nxe7+ {[%clk 0:02:17]} 22...
Qxe7 {[%clk 0:01:16.4]} 23. Qe4 {[%clk 0:02:13.9]} 23... c6 {[%clk 0:01:12.9]}
24. d4 {[%clk 0:01:51.5]} 24... Rf4 {[%clk 0:01:12.2]} 25. Qe3 {[%clk
0:01:51.4]} 25... Raf8 {[%clk 0:00:55.5]} 26. dxe5 {[%clk 0:01:50.6]} 26... dxe5
{[%clk 0:00:51.3]} 27. Qxe5 {[%clk 0:01:45.8]} 27... Qd8 {[%clk 0:00:39.6]} 28.
Qe3 {[%clk 0:01:35]} 28... Kh8 {[%clk 0:00:29]} 29. Qd3 {[%clk 0:01:22.7]} 29...
Qc8 {[%clk 0:00:24]} 30. Ne5 {[%clk 0:01:07.7]} 30... Rxf1+ {[%clk 0:00:20.8]}
31. Bxf1 {[%clk 0:01:07.9]} 31... Qe6 {[%clk 0:00:17.6]} 32. Nf3 {[%clk
0:00:31.2]} 32... Qg4+ {[%clk 0:00:17.5]} 33. Bg2 {[%clk 0:00:31.5]} 33... Qe6
{[%clk 0:00:15]} 34. c4 {[%clk 0:00:25.3]} 34... h6 {[%clk 0:00:13.7]} 35. gxh6
{[%clk 0:00:24.2]} 35... gxh6 {[%clk 0:00:14.1]} 36. c5 {[%clk 0:00:15.9]} 36...
Rg8 {[%clk 0:00:14]} 37. Qd4+ {[%clk 0:00:13.7]} 37... Kh7 {[%clk 0:00:13.2]}
38. Qd3+ {[%clk 0:00:12.4]} 38... Kh8 {[%clk 0:00:12.3]} 39. Qc3+ {[%clk
0:00:11.7]} 39... Kh7 {[%clk 0:00:11.9]} 40. Qc2+ {[%clk 0:00:11.2]} 40... Kh8
{[%clk 0:00:11.7]} 41. Qd2 {[%clk 0:00:10.5]} 41... Qg6 {[%clk 0:00:10.3]} 42.
Kf1 {[%clk 0:00:07.9]} 42... Qb1+ {[%clk 0:00:10]} 43. Kf2 {[%clk 0:00:07.2]}
43... Qg6 {[%clk 0:00:09.5]} 44. Kg1 {[%clk 0:00:06]} 44... Qg3 {[%clk
0:00:09.1]} 45. Qxh6# {[%clk 0:00:03.2]} 1-0

[Event "Early-Titled-Tuesday-Blitz-January-30-2024"]
[Site "Chess.com"]
[Date "2024.01.30"]
[Round "8"]
[White "vasblesk"]
[Black "averageFM"]
[Result "1-0"]
[WhiteElo "2759"]
[BlackElo "2569"]
[TimeControl "180+1"]
[EndTime "9:30:21 PST"]
[Termination "vasblesk won by checkmate"]

1. d4 {[%clk 0:03:00.9]} 1... Nf6 {[%clk 0:02:57.1]} 2. c4 {[%clk 0:03:00.8]}
2... c5 {[%clk 0:02:55]} 3. d5 {[%clk 0:03:00.3]} 3... b5 {[%clk 0:02:55.1]} 4.
cxb5 {[%clk 0:03:00.5]} 4... a6 {[%clk 0:02:55.5]} 5. e3 {[%clk 0:03:01.1]} 5...
g6 {[%clk 0:02:52.5]} 6. Nc3 {[%clk 0:03:00.8]} 6... Bg7 {[%clk 0:02:52.1]} 7.
a4 {[%clk 0:03:00.9]} 7... O-O {[%clk 0:02:48.6]} 8. e4 {[%clk 0:03:01.2]} 8...
d6 {[%clk 0:02:44.4]} 9. Bc4 {[%clk 0:03:00.7]} 9... axb5 {[%clk 0:02:39.9]} 10.
Bxb5 {[%clk 0:02:59.1]} 10... Ba6 {[%clk 0:02:40]} 11. Be2 {[%clk 0:02:37.9]}
11... Bxe2 {[%clk 0:02:33.8]} 12. Ngxe2 {[%clk 0:02:38.8]} 12... Na6 {[%clk
0:02:33.3]} 13. O-O {[%clk 0:02:37.3]} 13... Nb4 {[%clk 0:02:32.6]} 14. Nf4
{[%clk 0:02:33.3]} 14... Nd7 {[%clk 0:02:31.1]} 15. Nd3 {[%clk 0:02:20.9]} 15...
Nxd3 {[%clk 0:02:30.4]} 16. Qxd3 {[%clk 0:02:21.8]} 16... Ne5 {[%clk 0:02:30.7]}
17. Qe2 {[%clk 0:02:19.5]} 17... c4 {[%clk 0:02:26]} 18. Be3 {[%clk 0:02:16.2]}
18... Nd3 {[%clk 0:02:25.4]} 19. Rfb1 {[%clk 0:02:14.3]} 19... Qa5 {[%clk
0:02:21.7]} 20. Nb5 {[%clk 0:02:10.5]} 20... Rfb8 {[%clk 0:02:12.2]} 21. Nd4
{[%clk 0:02:07.4]} 21... Bxd4 {[%clk 0:01:41.4]} 22. Bxd4 {[%clk 0:02:08.3]}
22... Rb3 {[%clk 0:01:37.2]} 23. Bc3 {[%clk 0:02:02.7]} 23... Qc5 {[%clk
0:01:28.9]} 24. a5 {[%clk 0:01:59]} 24... f6 {[%clk 0:01:29]} 25. g3 {[%clk
0:01:56.7]} 25... Ra6 {[%clk 0:01:23.3]} 26. Kg2 {[%clk 0:01:52.3]} 26... Rb5
{[%clk 0:00:46.9]} 27. f4 {[%clk 0:01:45.1]} 27... Nb4 {[%clk 0:00:43.4]} 28.
Qd2 {[%clk 0:01:40.3]} 28... Nd3 {[%clk 0:00:31.4]} 29. Qe2 {[%clk 0:01:25.8]}
29... f5 {[%clk 0:00:25.8]} 30. exf5 {[%clk 0:01:11.9]} 30... Qxd5+ {[%clk
0:00:24.6]} 31. Kg1 {[%clk 0:01:09.3]} 31... Qxf5 {[%clk 0:00:16]} 32. Rf1
{[%clk 0:00:19.4]} 32... Qc5+ {[%clk 0:00:14.9]} 33. Kg2 {[%clk 0:00:18.7]}
33... Qd5+ {[%clk 0:00:14]} 34. Rf3 {[%clk 0:00:19]} 34... e6 {[%clk 0:00:13.8]}
35. Rf1 {[%clk 0:00:17.8]} 35... Nc5 {[%clk 0:00:09.1]} 36. Kg1 {[%clk 0:00:16]}
36... Kf7 {[%clk 0:00:07.9]} 37. g4 {[%clk 0:00:15.9]} 37... Qe4 {[%clk
0:00:08]} 38. Qd2 {[%clk 0:00:15]} 38... d5 {[%clk 0:00:07.9]} 39. f5 {[%clk
0:00:14.1]} 39... exf5 {[%clk 0:00:07]} 40. gxf5 {[%clk 0:00:14.4]} 40... Nd3
{[%clk 0:00:05.4]} 41. fxg6+ {[%clk 0:00:14.2]} 41... Kxg6 {[%clk 0:00:05.7]}
42. Rf6+ {[%clk 0:00:14.3]} 42... Kg7 {[%clk 0:00:04.5]} 43. Qh6+ {[%clk
0:00:13.9]} 43... Kg8 {[%clk 0:00:04.8]} 44. Qf8# {[%clk 0:00:07.1]} 1-0

[Event "Early-Titled-Tuesday-Blitz-January-30-2024"]
[Site "Chess.com"]
[Date "2024.01.30"]
[Round "8"]
[White "GOGIEFF"]
[Black "jcibarra"]
[Result "1-0"]
[WhiteElo "2999"]
[BlackElo "2877"]
[TimeControl "180+1"]
[EndTime "9:30:22 PST"]
[Termination "GOGIEFF won on time"]

1. d4 {[%clk 0:03:00.9]} 1... Nf6 {[%clk 0:02:59.4]} 2. c4 {[%clk 0:03:01]} 2...
d6 {[%clk 0:03:00]} 3. Nf3 {[%clk 0:03:00.5]} 3... g6 {[%clk 0:03:00.3]} 4. Nc3
{[%clk 0:03:00.7]} 4... Bf5 {[%clk 0:03:00.8]} 5. h3 {[%clk 0:03:00.8]} 5... Ne4
{[%clk 0:02:59.2]} 6. Nxe4 {[%clk 0:03:00]} 6... Bxe4 {[%clk 0:02:59.7]} 7. Ng5
{[%clk 0:03:00.6]} 7... Bf5 {[%clk 0:03:00.1]} 8. e4 {[%clk 0:03:00.8]} 8... Bd7
{[%clk 0:03:00.8]} 9. Be2 {[%clk 0:02:55.6]} 9... Bg7 {[%clk 0:03:00.6]} 10. Be3
{[%clk 0:02:55]} 10... c5 {[%clk 0:02:59.2]} 11. dxc5 {[%clk 0:02:53.5]} 11...
dxc5 {[%clk 0:02:50.7]} 12. O-O {[%clk 0:02:51]} 12... O-O {[%clk 0:02:32.1]}
13. Bxc5 {[%clk 0:02:47.2]} 13... Bxb2 {[%clk 0:02:28.4]} 14. Rb1 {[%clk
0:02:43.6]} 14... Bf6 {[%clk 0:02:28.2]} 15. Nf3 {[%clk 0:01:37.6]} 15... Qc7
{[%clk 0:02:27.8]} 16. e5 {[%clk 0:01:24.1]} 16... Qxc5 {[%clk 0:02:20.3]} 17.
exf6 {[%clk 0:01:22.6]} 17... exf6 {[%clk 0:02:20.2]} 18. Rxb7 {[%clk
0:01:22.7]} 18... Bc6 {[%clk 0:02:06.4]} 19. Rb2 {[%clk 0:01:21.6]} 19... Nd7
{[%clk 0:01:58.4]} 20. Nd4 {[%clk 0:01:21.5]} 20... Rad8 {[%clk 0:01:44.3]} 21.
Nxc6 {[%clk 0:01:17.1]} 21... Qxc6 {[%clk 0:01:44.2]} 22. Qd4 {[%clk 0:01:10.6]}
22... Nc5 {[%clk 0:01:37.5]} 23. Qh4 {[%clk 0:01:01.2]} 23... Rfe8 {[%clk
0:01:32.5]} 24. Bf3 {[%clk 0:01:01.3]} 24... Qa6 {[%clk 0:01:32.4]} 25. Bd5
{[%clk 0:01:00.8]} 25... Kg7 {[%clk 0:01:19.6]} 26. Qd4 {[%clk 0:00:53.2]} 26...
Ne6 {[%clk 0:01:09.8]} 27. Qe3 {[%clk 0:00:51.5]} 27... Nc7 {[%clk 0:01:07.6]}
28. Qb3 {[%clk 0:00:47.1]} 28... Nxd5 {[%clk 0:01:01.3]} 29. cxd5 {[%clk
0:00:48]} 29... Rd6 {[%clk 0:01:00.8]} 30. Rd1 {[%clk 0:00:46.9]} 30... Red8
{[%clk 0:00:36.9]} 31. Rbd2 {[%clk 0:00:46.8]} 31... Qa5 {[%clk 0:00:37.5]} 32.
h4 {[%clk 0:00:41.3]} 32... h5 {[%clk 0:00:37]} 33. g3 {[%clk 0:00:41.6]} 33...
Qc5 {[%clk 0:00:37.3]} 34. Qe3 {[%clk 0:00:40]} 34... Qxe3 {[%clk 0:00:36.1]}
35. fxe3 {[%clk 0:00:40.4]} 35... f5 {[%clk 0:00:36.8]} 36. Rd4 {[%clk
0:00:38.6]} 36... Kf6 {[%clk 0:00:37]} 37. Kf2 {[%clk 0:00:38.9]} 37... Ke5
{[%clk 0:00:37.3]} 38. Ra4 {[%clk 0:00:39.1]} 38... R8d7 {[%clk 0:00:35.5]} 39.
Ra5 {[%clk 0:00:38.2]} 39... Rb6 {[%clk 0:00:24.7]} 40. a4 {[%clk 0:00:33.8]}
40... a6 {[%clk 0:00:20]} 41. Kf3 {[%clk 0:00:33.5]} 41... Rdd6 {[%clk
0:00:13.6]} 42. Rc5 {[%clk 0:00:29.3]} 42... Rb7 {[%clk 0:00:13.4]} 43. a5
{[%clk 0:00:28.4]} 43... Rbd7 {[%clk 0:00:14]} 44. Rc8 {[%clk 0:00:23.2]} 44...
Rxd5 {[%clk 0:00:14]} 45. Ra1 {[%clk 0:00:21.1]} 45... R7d6 {[%clk 0:00:11.3]}
46. Rb8 {[%clk 0:00:20.3]} 46... Rc5 {[%clk 0:00:11]} 47. Rb6 {[%clk 0:00:20.4]}
47... Rxa5 {[%clk 0:00:03.3]} 48. Rxa5+ {[%clk 0:00:17.1]} 1-0

[Event "Early-Titled-Tuesday-Blitz-January-30-2024"]
[Site "Chess.com"]
[Date "2024.01.30"]
[Round "8"]
[White "Timerkhanov"]
[Black "WindWhistler11"]
[Result "0-1"]
[WhiteElo "2647"]
[BlackElo "2488"]
[TimeControl "180+1"]
[EndTime "9:30:22 PST"]
[Termination "WindWhistler11 won on time"]

1. d4 {[%clk 0:03:00.9]} 1... e6 {[%clk 0:02:54.4]} 2. e4 {[%clk 0:02:55.1]}
2... d5 {[%clk 0:02:54.1]} 3. Bd3 {[%clk 0:02:55.8]} 3... Nc6 {[%clk 0:02:53.9]}
4. exd5 {[%clk 0:02:52.9]} 4... exd5 {[%clk 0:02:52.8]} 5. c3 {[%clk 0:02:52.8]}
5... Bd6 {[%clk 0:02:52.4]} 6. Nf3 {[%clk 0:02:50.9]} 6... Nge7 {[%clk 0:02:53]}
7. O-O {[%clk 0:02:50.4]} 7... f6 {[%clk 0:02:52.7]} 8. h3 {[%clk 0:02:50]} 8...
Bf5 {[%clk 0:02:48.3]} 9. Re1 {[%clk 0:02:49.4]} 9... Qd7 {[%clk 0:02:48.6]} 10.
b4 {[%clk 0:02:48.2]} 10... O-O {[%clk 0:02:44.2]} 11. Qc2 {[%clk 0:02:40.6]}
11... Bxd3 {[%clk 0:02:41.8]} 12. Qxd3 {[%clk 0:02:40.3]} 12... Qf5 {[%clk
0:02:40]} 13. Qb5 {[%clk 0:02:30.3]} 13... a6 {[%clk 0:02:34.5]} 14. Qf1 {[%clk
0:02:26.1]} 14... Ng6 {[%clk 0:02:32.3]} 15. Be3 {[%clk 0:02:25.5]} 15... Qc2
{[%clk 0:02:13.9]} 16. Rc1 {[%clk 0:02:19.5]} 16... Qf5 {[%clk 0:02:10.4]} 17.
Nbd2 {[%clk 0:02:19.7]} 17... Rae8 {[%clk 0:02:07.1]} 18. Nb3 {[%clk 0:02:19.4]}
18... b6 {[%clk 0:02:04.7]} 19. Qxa6 {[%clk 0:02:17.7]} 19... Bf4 {[%clk
0:02:01.7]} 20. Re1 {[%clk 0:02:08.9]} 20... Re7 {[%clk 0:01:57]} 21. Qb5 {[%clk
0:01:58.6]} 21... Na7 {[%clk 0:01:43.8]} 22. Qf1 {[%clk 0:01:56.6]} 22... Rfe8
{[%clk 0:01:40.3]} 23. Bxf4 {[%clk 0:01:50.6]} 23... Nxf4 {[%clk 0:01:41.2]} 24.
Rxe7 {[%clk 0:01:49.4]} 24... Rxe7 {[%clk 0:01:42.1]} 25. Re1 {[%clk 0:01:44]}
25... Nc8 {[%clk 0:01:27.7]} 26. Nc1 {[%clk 0:01:15.2]} 26... Re4 {[%clk
0:01:15.8]} 27. Rxe4 {[%clk 0:00:57.9]} 27... dxe4 {[%clk 0:01:16]} 28. Nh2
{[%clk 0:00:48.7]} 28... Nd6 {[%clk 0:01:10.9]} 29. Ng4 {[%clk 0:00:47.7]} 29...
Qg5 {[%clk 0:01:08]} 30. g3 {[%clk 0:00:41.3]} 30... Nd5 {[%clk 0:01:04.1]} 31.
Qe1 {[%clk 0:00:35.1]} 31... h5 {[%clk 0:01:03.5]} 32. Ne3 {[%clk 0:00:34.8]}
32... Nf4 {[%clk 0:01:03.8]} 33. Kh2 {[%clk 0:00:33.2]} 33... h4 {[%clk
0:01:00.1]} 34. gxf4 {[%clk 0:00:31.1]} 34... Qxf4+ {[%clk 0:01:01]} 35. Kg1
{[%clk 0:00:27]} 35... Nf7 {[%clk 0:01:00.1]} 36. Ne2 {[%clk 0:00:21.8]} 36...
Qf3 {[%clk 0:00:58.7]} 37. Qf1 {[%clk 0:00:13.9]} 37... Ng5 {[%clk 0:00:57.6]}
38. Kh2 {[%clk 0:00:13.5]} 38... Qh5 {[%clk 0:00:54]} 39. Ng1 {[%clk 0:00:13.5]}
39... Kh7 {[%clk 0:00:41.4]} 40. a4 {[%clk 0:00:10.6]} 40... Ne6 {[%clk
0:00:39]} 41. Qg2 {[%clk 0:00:10.3]} 41... f5 {[%clk 0:00:34.9]} 42. f3 {[%clk
0:00:09.2]} 42... Nf4 {[%clk 0:00:33.2]} 43. Qf2 {[%clk 0:00:06.6]} 43... Nd3
{[%clk 0:00:31.7]} 44. Qf1 {[%clk 0:00:05.9]} 44... Qg5 {[%clk 0:00:29.4]} 45.
fxe4 {[%clk 0:00:04.6]} 45... Qg3+ {[%clk 0:00:29]} 46. Kh1 {[%clk 0:00:03.8]}
46... Nf2+ {[%clk 0:00:29.8]} 47. Qxf2 {[%clk 0:00:03.2]} 47... Qxf2 {[%clk
0:00:30.7]} 48. Nxf5 {[%clk 0:00:03.8]} 48... Qc2 {[%clk 0:00:26.3]} 0-1

[Event "Early-Titled-Tuesday-Blitz-January-30-2024"]
[Site "Chess.com"]
[Date "2024.01.30"]
[Round "8"]
[White "Nekoo04"]
[Black "Mourinho_Jose"]
[Result "1-0"]
[WhiteElo "2398"]
[BlackElo "2505"]
[TimeControl "180+1"]
[EndTime "9:30:26 PST"]
[Termination "Nekoo04 won on time"]

1. d4 {[%clk 0:03:00.9]} 1... d5 {[%clk 0:02:59.8]} 2. c4 {[%clk 0:03:00.7]}
2... c6 {[%clk 0:02:58.9]} 3. Nf3 {[%clk 0:03:00.6]} 3... Nf6 {[%clk 0:02:59.4]}
4. Qc2 {[%clk 0:03:00.9]} 4... dxc4 {[%clk 0:02:59.3]} 5. e4 {[%clk 0:02:59.6]}
5... b5 {[%clk 0:02:58.3]} 6. b3 {[%clk 0:02:59.4]} 6... cxb3 {[%clk 0:02:56.1]}
7. axb3 {[%clk 0:03:00.3]} 7... Bb7 {[%clk 0:02:56.6]} 8. Bd2 {[%clk 0:02:57.5]}
8... e6 {[%clk 0:02:55.1]} 9. Ba5 {[%clk 0:02:56.3]} 9... Qc8 {[%clk 0:02:54.1]}
10. b4 {[%clk 0:02:56]} 10... a6 {[%clk 0:02:52.5]} 11. Nbd2 {[%clk 0:02:55.6]}
11... Be7 {[%clk 0:02:49.9]} 12. Bd3 {[%clk 0:02:53.2]} 12... g6 {[%clk
0:02:50.2]} 13. O-O {[%clk 0:02:38.6]} 13... O-O {[%clk 0:02:50]} 14. Rfc1
{[%clk 0:02:35.6]} 14... Nh5 {[%clk 0:02:39.7]} 15. Ne5 {[%clk 0:02:04.7]} 15...
Nf6 {[%clk 0:02:25.3]} 16. Nb3 {[%clk 0:02:03]} 16... Nfd7 {[%clk 0:02:14.2]}
17. Nxd7 {[%clk 0:01:43.2]} 17... Nxd7 {[%clk 0:02:15.1]} 18. e5 {[%clk
0:01:43.7]} 18... Rb8 {[%clk 0:01:58.6]} 19. Be4 {[%clk 0:01:43.5]} 19... Bg5
{[%clk 0:01:53.1]} 20. Rd1 {[%clk 0:01:41.5]} 20... Be7 {[%clk 0:01:04.5]} 21.
f4 {[%clk 0:01:29.6]} 21... Re8 {[%clk 0:01:01.6]} 22. Rac1 {[%clk 0:01:15.4]}
22... Ra8 {[%clk 0:01:00.3]} 23. Bxc6 {[%clk 0:01:12.9]} 23... Bxc6 {[%clk
0:01:01.2]} 24. Qxc6 {[%clk 0:01:13.4]} 24... Qxc6 {[%clk 0:00:57.3]} 25. Rxc6
{[%clk 0:01:14.3]} 25... g5 {[%clk 0:00:55.4]} 26. g3 {[%clk 0:00:43.4]} 26...
gxf4 {[%clk 0:00:55.2]} 27. gxf4 {[%clk 0:00:44.3]} 27... Nf8 {[%clk 0:00:55.9]}
28. Kf2 {[%clk 0:00:37.5]} 28... Ng6 {[%clk 0:00:56]} 29. Ke3 {[%clk 0:00:37.5]}
29... Rac8 {[%clk 0:00:56]} 30. Rdc1 {[%clk 0:00:35.5]} 30... Ra8 {[%clk
0:00:42.6]} 31. d5 {[%clk 0:00:17.8]} 31... exd5 {[%clk 0:00:39]} 32. Nd4 {[%clk
0:00:18.4]} 32... Bf8 {[%clk 0:00:38.8]} 33. Nf5 {[%clk 0:00:17.2]} 33... Re6
{[%clk 0:00:21]} 34. h4 {[%clk 0:00:15.9]} 34... Rae8 {[%clk 0:00:12.7]} 35. h5
{[%clk 0:00:15.5]} 35... Ne7 {[%clk 0:00:09.7]} 36. Nxe7+ {[%clk 0:00:14.1]}
36... R8xe7 {[%clk 0:00:06.1]} 37. Rxe6 {[%clk 0:00:08.4]} 37... fxe6 {[%clk
0:00:07]} 38. Rc6 {[%clk 0:00:07.4]} 38... Bh6 {[%clk 0:00:04]} 39. Rxa6 {[%clk
0:00:07]} 39... Rf7 {[%clk 0:00:01.8]} 40. Rxe6 {[%clk 0:00:07.6]} 40... Bxf4+
{[%clk 0:00:02.3]} 41. Kd4 {[%clk 0:00:08.2]} 41... Rd7 {[%clk 0:00:02.1]} 42.
h6 {[%clk 0:00:05.8]} 1-0

[Event "Early-Titled-Tuesday-Blitz-January-30-2024"]
[Site "Chess.com"]
[Date "2024.01.30"]
[Round "8"]
[White "maciek_92"]
[Black "arenal72"]
[Result "1-0"]
[WhiteElo "2798"]
[BlackElo "2582"]
[TimeControl "180+1"]
[EndTime "9:30:28 PST"]
[Termination "maciek_92 won on time"]

1. d4 {[%clk 0:01:17.3]} 1... d6 {[%clk 0:02:56.4]} 2. Bg5 {[%clk 0:01:10]} 2...
h6 {[%clk 0:02:54.2]} 3. Bh4 {[%clk 0:01:10.1]} 3... g5 {[%clk 0:02:51.1]} 4.
Bg3 {[%clk 0:01:10.3]} 4... f5 {[%clk 0:02:50.6]} 5. e3 {[%clk 0:01:06.6]} 5...
Nf6 {[%clk 0:02:49.9]} 6. Nd2 {[%clk 0:01:03.1]} 6... Bg7 {[%clk 0:02:48.3]} 7.
h4 {[%clk 0:00:59.6]} 7... g4 {[%clk 0:02:37.9]} 8. Bc4 {[%clk 0:00:57.6]} 8...
a6 {[%clk 0:02:26.1]} 9. Ne2 {[%clk 0:00:57.2]} 9... b5 {[%clk 0:02:26]} 10. Bb3
{[%clk 0:00:56.6]} 10... e6 {[%clk 0:02:09]} 11. Nf4 {[%clk 0:00:55.3]} 11...
Kf7 {[%clk 0:02:07.9]} 12. a4 {[%clk 0:00:51.2]} 12... b4 {[%clk 0:01:53.1]} 13.
f3 {[%clk 0:00:44.2]} 13... h5 {[%clk 0:01:42.9]} 14. e4 {[%clk 0:00:42.1]}
14... d5 {[%clk 0:01:37.4]} 15. exf5 {[%clk 0:00:38.1]} 15... exf5 {[%clk
0:01:35.6]} 16. O-O {[%clk 0:00:36.3]} 16... Nc6 {[%clk 0:01:32.7]} 17. c3
{[%clk 0:00:27.5]} 17... Re8 {[%clk 0:01:14.8]} 18. a5 {[%clk 0:00:22.9]} 18...
Bh6 {[%clk 0:01:12.9]} 19. Nd3 {[%clk 0:00:18.1]} 19... bxc3 {[%clk 0:01:09.1]}
20. bxc3 {[%clk 0:00:18.2]} 20... Re3 {[%clk 0:01:06.9]} 21. Ne5+ {[%clk
0:00:15.1]} 21... Nxe5 {[%clk 0:01:05.5]} 22. Bxe5 {[%clk 0:00:16]} 22... Be6
{[%clk 0:01:03.2]} 23. Rf2 {[%clk 0:00:08.6]} 23... Nd7 {[%clk 0:01:00.5]} 24.
Nf1 {[%clk 0:00:06.4]} 24... Qxh4 {[%clk 0:00:52.4]} 25. Bg3 {[%clk 0:00:05.9]}
25... Qe7 {[%clk 0:00:47.2]} 26. fxg4 {[%clk 0:00:06.2]} 26... hxg4 {[%clk
0:00:43]} 27. Qxg4 {[%clk 0:00:07.1]} 27... Rg8 {[%clk 0:00:37.5]} 28. Qh5+
{[%clk 0:00:07.1]} 28... Rg6 {[%clk 0:00:36.9]} 29. Bxd5 {[%clk 0:00:05]} 29...
Bxd5 {[%clk 0:00:35.4]} 30. Qxf5+ {[%clk 0:00:04.9]} 30... Kg7 {[%clk
0:00:34.1]} 31. Qxd5 {[%clk 0:00:05.6]} 31... Rexg3 {[%clk 0:00:32.5]} 32. Nxg3
{[%clk 0:00:06.5]} 32... Rxg3 {[%clk 0:00:32.3]} 33. Rf3 {[%clk 0:00:03.7]}
33... Rxf3 {[%clk 0:00:24.1]} 34. Qxf3 {[%clk 0:00:04.6]} 34... c5 {[%clk
0:00:20.1]} 35. Rd1 {[%clk 0:00:03.6]} 35... cxd4 {[%clk 0:00:19.7]} 36. cxd4
{[%clk 0:00:04.5]} 36... Qh4 {[%clk 0:00:15.1]} 37. d5 {[%clk 0:00:04.4]} 37...
Ne5 {[%clk 0:00:14.5]} 38. Qf2 {[%clk 0:00:03.7]} 38... Qe4 {[%clk 0:00:12.7]}
39. Qg3+ {[%clk 0:00:02.4]} 39... Kh7 {[%clk 0:00:10.9]} 40. d6 {[%clk 0:00:03]}
40... Be3+ {[%clk 0:00:10.4]} 41. Kh1 {[%clk 0:00:02.3]} 41... Ng4 {[%clk
0:00:10]} 42. d7 {[%clk 0:00:02.6]} 42... Bf2 {[%clk 0:00:03]} 43. Qh3+ {[%clk
0:00:02.5]} 43... Kg7 {[%clk 0:00:02.5]} 44. d8=Q {[%clk 0:00:03.2]} 1-0